bitfinex-derivatives/quotes_SOLF0:USTF0_20250524
["timestamp","ask_amount","ask_price","bid_price","bid_amount"]
[1748056970947,8.61231003,175.99,175.95,5.6818]
[1748056971246,2.93161003,175.99,175.95,5.6818]
[1748056971753,5.6809,175.99,175.95,5.6818]
[1748056972254,5.6809,175.99,175.94,0.04174555]
[1748056972255,8.61251003,175.99,175.96,5.6814]
[1748056972442,5.6809,175.99,175.96,5.6814]
[1748056972749,8.61251003,175.99,175.96,5.6814]
[1748056972952,2.93161003,176.0,175.94,0.04174555]
[1748056973151,114.1,176.01,175.94,0.04174555]
[1748056973352,114.1,176.01,175.95,4.95449922]
[1748056973653,2.93161003,176.03,175.96,2.02176934]
[1748056973850,2.93161003,176.03,175.98,0.03791072]
[1748056974055,2.93161003,176.03,176.0,5.6802]
[1748056974257,8.61101003,176.03,176.0,5.6802]
[1748056974551,8.61101003,176.03,175.98,0.03791072]
[1748056974751,2.93161003,176.0,175.98,5.71881072]
[1748056974955,5.6799,176.02,175.98,5.71881072]
[1748056975253,2.93161003,176.01,175.98,5.71881072]
[1748056975452,5.6801,176.01,175.98,0.03791072]
[1748056976066,14.11513781,176.06,175.98,0.03791072]
[1748056976253,114.12,176.05,175.98,0.03791072]
[1748056976644,5.6799,176.02,175.98,0.03791072]
[1748056976847,114.12,176.05,175.98,0.03791072]
[1748056977046,5.6794,176.03,175.99,5.6803]
[1748056977847,5.6797,176.02,175.99,5.6803]
[1748056978051,114.12,176.05,175.99,5.6803]
[1748056978252,114.1,176.05,175.98,0.03791072]
[1748056979556,5.6799,176.02,175.98,5.71851072]
[1748056979748,114.1,176.05,175.98,0.03791072]
[1748056980255,5.6802,176.01,175.98,0.03791072]
[1748056980653,114.1,176.05,175.98,0.03791072]
[1748056980853,118.67659348,176.05,175.98,0.03791072]
[1748056981256,5.6799,176.02,175.98,5.71861072]
[1748056982157,5.68,176.01,175.98,0.03791072]
[1748056982458,118.67659348,176.05,175.98,0.03791072]
[1748056982459,114.1,176.05,175.98,0.03791072]
[1748056982757,5.6797,176.02,175.98,0.03791072]
[1748056983159,5.6797,176.02,175.98,5.71861072]
[1748056984565,114.1,176.05,175.98,5.71861072]
[1748056984753,4.57659348,176.03,175.98,0.03791072]
[1748056984954,4.57659348,176.0,175.98,0.03791072]
[1748056985154,114.08,175.99,175.98,0.03791072]
[1748056985360,119.7606,175.99,175.98,0.03791072]
[1748056996259,114.08,175.99,175.98,0.03791072]
[1748056996464,114.1,176.03,175.98,0.03791072]
[1748056996861,119.7796,176.03,175.99,5.6804]
[1748056997466,5.6797,176.02,175.99,5.6804]
[1748056998067,1.9956,176.04,175.98,5.71871072]
[1748056998266,1.9956,176.04,175.98,0.03791072]
[1748056998762,1.9956,176.04,175.99,5.6806]
[1748056998955,114.1,176.03,175.99,5.6806]
[1748056999564,5.6799,176.02,175.99,5.6806]
[1748057000066,114.1,176.03,175.98,5.71881072]
[1748057000272,5.6801,176.01,175.98,5.71881072]
[1748057000568,114.1,176.03,175.98,0.03791072]
[1748057001369,114.1,176.03,176.0,5.6801]
[1748057002167,119.7795,176.03,176.0,5.6801]
[1748057002671,114.1,176.03,175.98,0.03791072]
[1748057004161,114.1,176.03,176.01,5.6797]
[1748057004467,5.679,176.04,176.01,5.6797]
[1748057005267,1.9239,176.09,175.99,2.01365968]
[1748057005470,4.57659348,176.12,176.02,0.03677339]
[1748057005670,4.57659348,176.12,176.05,0.0433275]
[1748057005865,5.6778,176.08,176.05,0.0433275]
[1748057006164,119.7178,176.08,176.05,0.0433275]
[1748057007069,5.6783,176.07,176.05,0.0433275]
[1748057007272,114.04,176.08,176.05,0.0433275]
[1748057007670,74.33512996,176.08,175.98,5.6807]
[1748057007867,1.9821,176.07,175.98,5.6807]
[1748057008066,1.9821,176.07,175.95,1.9826]
[1748057008366,5.9077,176.07,175.98,5.6807]
[1748057008672,5.9077,176.07,176.01,0.04253259]
[1748057008673,0.04357673,176.04,176.01,0.04253259]
[1748057008867,5.6796,176.02,176.01,0.04253259]
[1748057013270,4.57659348,176.02,175.91,115.9901]
[1748057013877,114.02,176.04,175.91,115.9901]
[1748057014185,0.04165623,175.99,175.96,0.04088506]
[1748057014385,0.04165623,175.99,175.98,5.6807]
[1748057016293,5.6787,176.05,176.01,5.6797]
[1748057017293,0.03648926,176.05,176.02,5.6796]
[1748057017890,5.71518926,176.05,176.02,5.6796]
[1748057018292,5.71518926,176.05,176.01,5.72258551]
[1748057019294,0.03648926,176.05,176.01,0.04268551]
[1748057020192,0.03648926,176.05,176.02,5.6794]
[1748057020395,0.03648926,176.05,176.01,0.04268551]
[1748057021599,0.03648926,176.05,176.02,5.6794]
[1748057023099,0.03648926,176.05,176.03,5.6793]
[1748057026797,0.03648926,176.05,176.01,0.04268551]
[1748057027700,5.6793,176.04,176.01,0.04268551]
[1748057029603,5.6793,176.04,176.01,5.72258551]
[1748057029796,5.6793,176.04,176.01,0.04268551]
[1748057030403,5.71528926,176.05,176.01,0.04268551]
[1748057030902,5.71528926,176.05,176.01,5.72258551]
[1748057031100,0.03648926,176.05,176.01,0.04268551]
[1748057031703,0.03648926,176.05,176.04,5.679]
[1748057039511,0.03648926,176.05,176.02,5.6795]
[1748057039706,0.03648926,176.05,176.01,2.08388551]
[1748057040113,0.03648926,176.05,176.03,5.6793]
[1748057040715,0.03648926,176.05,176.02,5.6795]
[1748057041209,0.03648926,176.05,176.03,5.6793]
[1748057041415,0.03648926,176.05,176.01,2.08388551]
[1748057041612,0.03648926,176.05,176.02,2.02015645]
[1748057041813,0.03648926,176.05,176.02,5.6794]
[1748057042115,0.03648926,176.05,176.01,2.08388551]
[1748057042316,0.03648926,176.05,176.03,5.6793]
[1748057045521,0.03648926,176.05,176.02,5.6796]
[1748057046224,0.03648926,176.05,176.03,5.6793]
[1748057046519,0.03648926,176.05,176.01,2.08388551]
[1748057046721,0.03648926,176.05,176.02,2.02214724]
[1748057046922,0.03648926,176.05,176.03,2.02214724]
[1748057047122,5.71528926,176.05,176.02,5.6796]
[1748057047525,5.71528926,176.05,176.01,5.72258551]
[1748057047723,0.03648926,176.05,176.02,2.02329222]
[1748057047922,0.03648926,176.05,176.01,0.04268551]
[1748057048422,5.6797,176.02,176.01,0.04268551]
[1748057048827,121.4797,176.02,176.01,0.04268551]
[1748057050520,5.6807,175.99,175.96,5.6816]
[1748057050720,115.8,176.02,175.92,1.8747]
[1748057050929,120.37659348,176.02,175.95,5.6819]
[1748057051227,5.6809,175.99,175.96,2.02376691]
[1748057051529,0.0385426,175.99,175.96,0.04106303]
[1748057052228,5.7191426,175.99,175.96,0.04106303]
[1748057052433,0.0385426,175.99,175.96,0.04106303]
[1748057053529,115.82,175.98,175.96,0.04106303]
[1748057053729,0.0385426,175.99,175.96,0.04106303]
[1748057053922,0.0385426,175.99,175.98,5.6809]
[1748057056030,4.61513608,175.99,175.96,0.04106303]
[1748057057329,5.6809,175.98,175.96,0.04106303]
[1748057057529,115.82,175.97,175.96,0.04106303]
[1748057058028,121.5013,175.97,175.96,0.04106303]
[1748057058428,115.82,175.97,175.96,0.04106303]
[1748057058626,115.82,175.97,175.96,5.72266303]
[1748057058827,0.0385426,175.99,175.96,0.04106303]
[1748057059824,0.0385426,175.99,175.98,5.6809]
[1748057061927,0.0385426,175.99,175.96,0.04106303]
[1748057063027,0.0385426,175.99,175.96,5.72246303]
[1748057064033,0.0385426,175.99,175.97,5.6812]
[1748057064230,0.0385426,175.99,175.96,0.04106303]
[1748057064437,0.0385426,175.99,175.98,5.6809]
[1748057064734,0.0385426,175.99,175.98,7.70005215]
[1748057064935,0.0385426,175.99,175.96,0.04106303]
[1748057065729,0.0385426,175.99,175.98,5.6809]
[1748057068038,0.0385426,175.99,175.98,7.70070662]
[1748057069539,0.0385426,175.99,175.98,7.70125208]
[1748057071335,0.0385426,175.99,175.97,2.02088735]
[1748057071636,0.0385426,175.99,175.96,0.04106303]
[1748057071938,0.0385426,175.99,175.97,7.70199498]
[1748057072139,0.0385426,175.99,175.96,0.04106303]
[1748057072338,0.0385426,175.99,175.97,2.02074]
[1748057072539,0.0385426,175.99,175.96,1.98476303]
[1748057072738,0.0385426,175.99,175.97,2.02087631]
[1748057072938,0.0385426,175.99,175.96,1.98476303]
[1748057073239,0.0385426,175.99,175.97,2.02078947]
[1748057073438,0.0385426,175.99,175.96,1.98476303]
[1748057073637,0.0385426,175.99,175.98,5.6809]
[1748057074041,0.0385426,175.99,175.98,7.70188326]
[1748057075036,0.0385426,175.99,175.98,5.6809]
[1748057075639,0.0385426,175.99,175.98,7.70200732]
[1748057075834,0.0385426,175.99,175.98,7.70201175]
[1748057076243,0.0385426,175.99,175.98,5.6809]
[1748057076637,0.0385426,175.99,175.98,7.70187935]
[1748057076837,0.0385426,175.99,175.98,5.6809]
[1748057077642,0.0385426,175.99,175.98,7.70175157]
[1748057078342,0.0385426,175.99,175.98,5.6809]
[1748057078638,0.0385426,175.99,175.98,7.70232524]
[1748057079142,0.0385426,175.99,175.98,7.70218364]
[1748057080039,117.72,176.06,175.98,7.70218364]
[1748057080247,117.72,176.06,176.03,5.6791]
[1748057081141,117.75783132,176.06,176.03,5.71879588]
[1748057081536,123.43623132,176.06,176.03,5.71879588]
[1748057082840,123.43623132,176.06,176.03,0.03969588]
[1748057084041,5.6789,176.05,176.03,0.03969588]
[1748057084346,122.3344248,176.06,176.03,0.03969588]
[1748057084844,5.679,176.04,176.03,0.03969588]
[1748057093748,5.6801,176.01,175.98,7.7059129]
[1748057093948,5.6801,176.01,175.98,5.6808]
[1748057094751,5.71746479,176.01,175.98,5.7189459]
[1748057096650,5.6806,175.99,175.98,0.0381459]
[1748057107358,5.6811,175.98,175.95,5.6816]
[1748057107558,122.0011,175.98,175.95,5.6816]
[1748057108461,116.32,175.98,175.96,5.6813]
[1748057108654,116.32,175.98,175.95,0.03830181]
[1748057110053,122.001,175.98,175.95,0.03830181]
[1748057110661,5.6813,175.97,175.95,0.03830181]
[1748057111560,4.57659348,176.0,175.95,0.03830181]
[1748057111761,116.32,175.99,175.95,0.03830181]
[1748057112158,5.6815,175.97,175.95,0.03830181]
[1748057113363,5.6816,175.96,175.95,0.03830181]
[1748057113759,116.32,175.96,175.9,4.85187809]
[1748057114556,116.32,175.96,175.88,4.85187809]
[1748057114863,0.03657282,175.94,175.9,0.04367477]
[1748057115165,0.03657282,175.94,175.91,5.6831]
[1748057115352,0.03657282,175.94,175.9,0.04367477]
[1748057115758,116.34,175.93,175.9,0.04367477]
[1748057116265,5.6829,175.92,175.9,0.04367477]
[1748057116461,116.34,175.93,175.9,0.04367477]
[1748057116658,5.6832,175.91,175.9,0.04367477]
[1748057120365,5.6832,175.91,175.9,7.477e-05]
[1748057120569,4.57659348,175.92,175.83,4.85187809]
[1748057120772,116.34,175.91,175.83,4.85187809]
[1748057121068,5.6845,175.87,175.83,4.85187809]
[1748057121265,116.34,175.88,175.83,4.85187809]
[1748057121466,0.03798134,175.87,175.84,0.03802218]
[1748057122369,116.39798134,175.87,175.84,0.03802218]
[1748057123675,122.08258134,175.87,175.84,0.03802218]
[1748057123876,116.39798134,175.87,175.84,0.03802218]
[1748057124380,122.08248134,175.87,175.84,0.03802218]
[1748057124970,5.6849,175.86,175.84,0.03802218]
[1748057125681,122.08248134,175.87,175.84,0.03802218]
[1748057125885,116.39798134,175.87,175.84,0.03802218]
[1748057126272,120.97457482,175.87,175.84,0.03802218]
[1748057126981,120.97457482,175.87,175.78,5.6873]
[1748057127177,4.57659348,175.84,175.78,5.6873]
[1748057127380,122.006,175.83,175.78,5.6873]
[1748057127582,116.32,175.83,175.79,5.6868]
[1748057127884,116.35653281,175.83,175.79,5.72904835]
[1748057128781,122.04243281,175.83,175.79,5.72904835]
[1748057129183,116.34,175.82,175.8,5.6867]
[1748057129684,116.34,175.82,175.79,0.04224835]
[1748057129884,116.34,175.82,175.79,5.72924835]
[1748057130189,4.57659348,175.81,175.79,0.04224835]
[1748057130485,10.26319348,175.81,175.79,0.04224835]
[1748057131785,5.6867,175.8,175.79,0.04224835]
[1748057133187,0.03653281,175.83,175.79,0.04224835]
[1748057133385,116.39653281,175.83,175.79,0.04224835]
[1748057134583,116.39653281,175.83,175.82,5.6861]
[1748057135284,0.03653281,175.83,175.82,5.6861]
[1748057140284,0.03653281,175.83,175.79,0.04224835]
[1748057140285,607.7,175.89,175.79,0.04224835]
[1748057140685,116.38,175.92,175.89,5.6837]
[1748057140886,3.7916,175.97,175.82,112.63659348]
[1748057141186,0.04156163,175.91,175.88,0.03798084]
[1748057141387,0.04197401,175.91,175.88,0.03798084]
[1748057141991,0.04197401,175.91,175.9,5.6834]
[1748057142588,116.38,175.96,175.92,5.6828]
[1748057142992,116.38,175.96,175.87,116.38]
[1748057143590,0.03775212,175.93,175.9,0.04326964]
[1748057143887,0.03775212,175.93,175.91,5.6831]
[1748057147597,0.03775212,175.93,175.9,0.04326964]
[1748057147598,0.03775212,175.93,175.92,5.6829]
[1748057148494,0.03775212,175.93,175.91,5.6831]
[1748057149295,0.03775212,175.93,175.92,5.6829]
[1748057156303,0.03775212,175.93,175.9,0.04326964]
[1748057158604,0.03775212,175.93,175.9,5.72656964]
[1748057159606,0.03775212,175.93,175.9,0.04326964]
[1748057159806,5.72045212,175.93,175.9,0.04326964]
[1748057160304,0.03775212,175.93,175.9,0.04326964]
[1748057160803,0.03775212,175.93,175.9,5.72676964]
[1748057161606,5.6829,175.92,175.9,0.04326964]
[1748057161813,4.57659348,175.92,175.82,116.02]
[1748057162202,5.6839,175.89,175.85,5.6849]
[1748057162905,5.7213866,175.89,175.85,5.72745728]
[1748057163111,5.6842,175.88,175.85,0.04255728]
[1748057163313,4.61408008,175.89,175.85,0.04255728]
[1748057163608,5.6848,175.86,175.85,0.04255728]
[1748057164114,121.7248,175.86,175.85,0.04255728]
[1748057164507,121.7248,175.86,175.77,119.8509]
[1748057164508,5.6859,175.83,175.8,5.6867]
[1748057164709,5.6859,175.83,175.77,119.8509]
[1748057164909,120.61659348,175.86,175.77,119.8509]
[1748057165212,5.6855,175.84,175.8,5.6865]
[1748057165810,5.6859,175.83,175.8,0.04305523]
[1748057166212,5.6859,175.83,175.8,5.72975523]
[1748057166512,5.72918055,175.84,175.8,5.72975523]
[1748057166713,0.04368055,175.84,175.8,0.04305523]
[1748057167005,4.57659348,175.83,175.8,0.04305523]
[1748057167212,10.26239348,175.83,175.8,0.04305523]
[1748057167406,4.57659348,175.83,175.8,0.04305523]
[1748057167601,116.06,175.82,175.8,0.04305523]
[1748057168312,5.6864,175.81,175.8,0.04305523]
[1748057170614,121.7462,175.82,175.8,0.04305523]
[1748057171418,5.6864,175.81,175.8,0.04305523]
[1748057171716,116.06,175.82,175.8,0.04305523]
[1748057172118,121.7464,175.82,175.8,0.04305523]
[1748057172417,116.06,175.82,175.8,0.04305523]
[1748057172619,116.06,175.82,175.75,2.0357]
[1748057172915,116.06,175.82,175.73,1.9597]
[1748057172916,4.57659348,175.8,175.73,1.9597]
[1748057173516,0.03662399,175.78,175.75,0.04037915]
[1748057174613,0.03662399,175.78,175.76,5.6879]
[1748057180117,0.03662399,175.78,175.75,0.04037915]
[1748057180317,121.82422399,175.78,175.75,0.04037915]
[1748057180821,121.82422399,175.78,175.75,5.72867915]
[1748057181218,116.13662399,175.78,175.75,0.04037915]
[1748057181920,116.13662399,175.78,175.75,5.72867915]
[1748057184224,116.13662399,175.78,175.75,0.04037915]
[1748057184415,116.13662399,175.78,175.76,5.6878]
[1748057187925,116.13662399,175.78,175.75,5.72867915]
[1748057188523,116.13662399,175.78,175.76,5.688]
[1748057190529,121.82412399,175.78,175.75,5.72867915]
[1748057190827,116.13662399,175.78,175.75,0.04037915]
[1748057191223,121.82412399,175.78,175.75,0.04037915]
[1748057191728,116.13662399,175.78,175.75,0.04037915]
[1748057191927,116.13662399,175.78,175.75,5.72857915]
[1748057192223,116.13662399,175.78,175.75,0.04037915]
[1748057192427,121.82432399,175.78,175.75,0.04037915]
[1748057194234,121.82432399,175.78,175.75,5.72867915]
[1748057197838,121.82432399,175.78,175.75,0.04037915]
[1748057198439,121.82432399,175.78,175.75,5.72867915]
[1748057199638,121.82432399,175.78,175.75,0.04037915]
[1748057200138,5.6878,175.77,175.75,0.04037915]
[1748057200340,116.13662399,175.78,175.75,0.04037915]
[1748057200643,121.82412399,175.78,175.75,0.04037915]
[1748057200840,121.82412399,175.78,175.75,5.72867915]
[1748057201041,116.13662399,175.78,175.75,5.72867915]
[1748057201537,116.13662399,175.78,175.75,0.04037915]
[1748057201841,5.6878,175.77,175.75,0.04037915]
[1748057202545,5.688,175.76,175.75,0.04037915]
[1748057202940,4.57659348,175.77,175.61,4.57659348]
[1748057203145,4.57659348,175.77,175.7,5.6899]
[1748057203336,4.57659348,175.77,175.62,115.08]
[1748057203641,2.93836285,175.72,175.65,2.93836285]
[1748057203843,2.93836285,175.72,175.7,5.6897]
[1748057204344,2.93836285,175.72,175.71,5.6897]
[1748057205644,0.04307474,175.73,175.71,5.6897]
[1748057206145,0.04307474,175.73,175.72,5.6893]
[1748057206540,115.1,175.77,175.69,0.03619677]
[1748057206844,115.1,175.77,175.75,5.6882]
[1748057208551,115.1,175.77,175.74,5.72739984]
[1748057209056,5.6884,175.75,175.74,0.03879984]
[1748057209549,115.1,175.77,175.74,0.03879984]
[1748057210049,5.6883,175.76,175.74,0.03879984]
[1748057210247,115.1,175.77,175.74,0.03879984]
[1748057210549,5.6883,175.76,175.74,0.03879984]
[1748057210750,115.1,175.77,175.74,0.03879984]
[1748057211250,5.6883,175.76,175.74,0.03879984]
[1748057211848,120.7879,175.77,175.74,0.03879984]
[1748057212551,5.6881,175.76,175.74,0.03879984]
[1748057212849,115.1,175.77,175.74,5.72739984]
[1748057213038,120.7878,175.77,175.74,5.72739984]
[1748057214754,115.1,175.77,175.75,5.6883]
[1748057215445,120.7879,175.77,175.74,0.03879984]
[1748057219256,120.7879,175.77,175.74,5.72739984]
[1748057224062,0.03928209,175.78,175.74,0.03879984]
[1748057224963,114.74,175.85,175.75,114.74]
[1748057225455,114.74,175.88,175.75,114.74]
[1748057225967,114.74,175.88,175.85,5.6851]
[1748057226157,114.7819773,175.88,175.85,5.72750839]
[1748057226564,120.4661773,175.88,175.85,5.72750839]
[1748057227263,114.7819773,175.88,175.85,5.72750839]
[1748057228165,114.7819773,175.88,175.86,5.6848]
[1748057228767,114.7819773,175.88,175.85,0.04240839]
[1748057228961,0.0419773,175.88,175.85,0.04240839]
[1748057229564,0.0419773,175.88,175.87,5.6845]
[1748057231466,0.0419773,175.88,175.85,0.04240839]
[1748057232268,5.7261773,175.88,175.85,0.04240839]
[1748057232567,0.0419773,175.88,175.85,0.04240839]
[1748057232760,5.6845,175.87,175.85,0.04240839]
[1748057234364,5.7262773,175.88,175.85,0.04240839]
[1748057235368,5.6846,175.87,175.85,0.04240839]
[1748057236267,0.0419773,175.88,175.85,0.04240839]
[1748057236667,0.0419773,175.88,175.85,5.72730839]
[1748057237670,0.0419773,175.88,175.86,5.6848]
[1748057237969,0.0419773,175.88,175.85,0.04240839]
[1748057238971,0.0419773,175.88,175.87,5.6845]
[1748057250578,0.0419773,175.88,175.85,0.04240839]
[1748057251076,114.64,175.87,175.85,0.04240839]
[1748057251882,114.64,175.87,175.85,5.72740839]
[1748057252382,114.64,175.87,175.86,5.6848]
[1748057252781,114.64,175.87,175.85,0.04240839]
[1748057252981,114.64,175.87,175.85,5.72740839]
[1748057253282,114.64,175.87,175.85,0.04240839]
[1748057254079,114.64,175.87,175.86,5.6848]
[1748057257182,0.0419773,175.88,175.87,5.6845]
[1748057259685,0.0419773,175.88,175.87,7.71814315]
[1748057260187,0.0419773,175.88,175.87,7.71815698]
[1748057262290,0.0419773,175.88,175.87,7.71442853]
[1748057264187,114.6819773,175.88,175.87,2.02992853]
[1748057264388,114.6819773,175.88,175.85,0.04240839]
[1748057265292,114.6819773,175.88,175.86,2.0277585]
[1748057265486,114.6819773,175.88,175.85,0.04240839]
[1748057265684,114.6819773,175.88,175.86,2.02772485]
[1748057265885,114.6819773,175.88,175.85,0.04240839]
[1748057266190,114.6819773,175.88,175.86,7.71231151]
[1748057266388,114.6819773,175.88,175.85,0.04240839]
[1748057266589,114.6819773,175.88,175.86,2.02784912]
[1748057266790,114.6819773,175.88,175.85,0.04240839]
[1748057266982,114.6819773,175.88,175.86,2.0278476]
[1748057267183,114.6819773,175.88,175.85,0.04240839]
[1748057267379,114.6819773,175.88,175.86,2.02783568]
[1748057267583,114.6819773,175.88,175.85,0.04240839]
[1748057267784,114.6819773,175.88,175.86,2.02806143]
[1748057267983,114.6819773,175.88,175.85,0.04240839]
[1748057267984,0.0419773,175.88,175.87,5.6845]
[1748057268283,0.0419773,175.88,175.87,7.70896967]
[1748057271582,0.0419773,175.88,175.87,2.02446967]
[1748057272289,0.0419773,175.88,175.87,7.70896967]
[1748057273191,0.0419773,175.88,175.87,7.70805544]
[1748057280100,0.0419773,175.88,175.87,2.02355544]
[1748057280505,0.0419773,175.88,175.87,2.02540187]
[1748057281106,0.0419773,175.88,175.85,0.04240839]
[1748057281306,0.0419773,175.88,175.86,2.02606054]
[1748057281503,0.0419773,175.88,175.87,2.02586062]
[1748057284407,0.0419773,175.88,175.85,5.72740839]
[1748057284704,0.0419773,175.88,175.85,0.04240839]
[1748057285106,0.0419773,175.88,175.85,5.72740839]
[1748057287408,0.0419773,175.88,175.86,5.6848]
[1748057288010,0.0419773,175.88,175.85,5.72750839]
[1748057289808,5.7261773,175.88,175.85,0.04240839]
[1748057290908,5.6845,175.87,175.85,0.04240839]
[1748057291110,0.0419773,175.88,175.85,0.04240839]
[1748057291415,5.7262773,175.88,175.85,0.04240839]
[1748057291606,0.0419773,175.88,175.85,0.04240839]
[1748057292215,5.7263773,175.88,175.85,0.04240839]
[1748057293815,5.6845,175.87,175.85,0.04240839]
[1748057295619,5.7262773,175.88,175.85,0.04240839]
[1748057295816,0.0419773,175.88,175.85,0.04240839]
[1748057296017,5.7262773,175.88,175.85,0.04240839]
[1748057296218,0.0419773,175.88,175.85,0.04240839]
[1748057297620,5.6848,175.86,175.85,0.04240839]
[1748057298221,0.0419773,175.88,175.85,5.72750839]
[1748057298418,114.6419773,175.88,175.85,5.72750839]
[1748057298619,114.6419773,175.88,175.85,0.04240839]
[1748057299021,120.3263773,175.88,175.85,0.04240839]
[1748057301723,114.6419773,175.88,175.85,5.72750839]
[1748057302018,114.6419773,175.88,175.85,0.04240839]
[1748057303725,120.3263773,175.88,175.85,0.04240839]
[1748057310428,5.6845,175.87,175.85,0.04240839]
[1748057310634,114.6419773,175.88,175.85,0.04240839]
[1748057311134,5.6845,175.87,175.85,0.04240839]
[1748057312038,120.3262773,175.88,175.85,0.04240839]
[1748057312227,0.0419773,175.88,175.85,0.04240839]
[1748057312426,114.52,175.93,175.85,0.04240839]
[1748057312632,5.6821,175.95,175.9,5.6833]
[1748057313437,0.03654147,175.94,175.91,0.03929146]
[1748057313640,0.03654147,175.94,175.91,5.72239146]
[1748057315137,5.71884147,175.94,175.91,0.03929146]
[1748057315739,5.6827,175.93,175.91,0.03929146]
[1748057317743,5.71874147,175.94,175.91,0.03929146]
[1748057321149,0.03654147,175.94,175.91,5.72249146]
[1748057323144,0.03654147,175.94,175.93,5.6825]
[1748057323345,114.5,175.99,175.91,0.03929146]
[1748057323738,114.5,175.99,175.96,5.6815]
[1748057324243,114.5,175.99,175.92,2.0177]
[1748057324445,0.03622774,175.97,175.94,0.04175322]
[1748057325246,0.03622774,175.97,175.96,5.6816]
[1748057330057,0.03622774,175.97,175.94,0.04175322]
[1748057330552,5.6819,175.95,175.94,0.04175322]
[1748057335157,5.6817,175.96,175.94,0.04175322]
[1748057336363,5.71752774,175.97,175.94,0.04175322]
[1748057336563,0.03622774,175.97,175.94,0.04175322]
[1748057337266,0.03622774,175.97,175.95,5.6817]
[1748057337669,0.03622774,175.97,175.94,0.04175322]
[1748057337864,0.03622774,175.97,175.96,5.6816]
[1748057339368,0.03622774,175.97,175.95,5.6818]
[1748057339867,0.03622774,175.97,175.96,5.6816]
[1748057340368,0.03622774,175.97,175.94,0.04175322]
[1748057340570,0.03622774,175.97,175.95,5.6818]
[1748057345173,0.03622774,175.97,175.96,5.6816]
[1748057350673,0.03622774,175.97,175.94,0.04175322]
[1748057351275,5.71772774,175.97,175.94,0.04175322]
[1748057351471,0.03622774,175.97,175.94,0.04175322]
[1748057351677,114.41622774,175.97,175.94,0.04175322]
[1748057352181,120.09772774,175.97,175.94,5.72375322]
[1748057352365,114.41622774,175.97,175.94,0.04175322]
[1748057352979,120.09762774,175.97,175.94,0.04175322]
[1748057353176,114.41622774,175.97,175.94,0.04175322]
[1748057353571,120.09772774,175.97,175.94,5.72395322]
[1748057353771,114.41622774,175.97,175.94,0.04175322]
[1748057354982,114.41622774,175.97,175.95,5.6819]
[1748057356177,0.03622774,175.97,175.96,5.6816]
[1748057362679,0.03622774,175.97,175.94,0.04175322]
[1748057363383,5.6819,175.95,175.94,0.04175322]
[1748057364376,120.0617,175.96,175.94,0.04175322]
[1748057365382,5.6819,175.95,175.94,0.04175322]
[1748057365982,120.0617,175.96,175.94,0.04175322]
[1748057366680,5.6819,175.95,175.94,0.04175322]
[1748057367386,120.0617,175.96,175.94,0.04175322]
[1748057370381,5.6819,175.95,175.94,0.04175322]
[1748057371091,114.38,175.96,175.94,0.04175322]
[1748057371692,120.0619,175.96,175.94,0.04175322]
[1748057373997,114.38,175.96,175.94,0.04175322]
[1748057374398,0.03622774,175.97,175.94,0.04175322]
[1748057374599,0.03622774,175.97,175.95,5.6817]
[1748057377499,0.03622774,175.97,175.94,0.04175322]
[1748057377500,5.71772774,175.97,175.94,0.04175322]
[1748057377802,0.03622774,175.97,175.94,0.04175322]
[1748057379205,5.6819,175.96,175.94,0.04175322]
[1748057379601,0.03622774,175.97,175.94,0.04175322]
[1748057379802,5.6816,175.96,175.94,0.04175322]
[1748057380002,0.03622774,175.97,175.94,0.04175322]
[1748057380299,5.6819,175.95,175.94,0.04175322]
[1748057380800,0.03622774,175.97,175.94,0.04175322]
[1748057381098,5.6819,175.96,175.94,0.04175322]
[1748057381300,0.03622774,175.97,175.94,0.04175322]
[1748057381701,2.93078878,175.95,175.94,0.04175322]
[1748057381898,8.61258878,175.96,175.94,0.04175322]
[1748057382202,5.6819,175.95,175.94,0.04175322]
[1748057383107,0.03622774,175.97,175.94,0.04175322]
[1748057383905,0.03622774,175.97,175.95,5.6817]
[1748057384104,0.03622774,175.97,175.94,0.04175322]
[1748057385104,0.03622774,175.97,175.95,5.6819]
[1748057385311,0.03622774,175.97,175.94,0.04175322]
[1748057386507,0.03622774,175.97,175.94,5.72385322]
[1748057387007,5.71752774,175.97,175.94,5.72385322]
[1748057389309,0.03622774,175.97,175.95,5.6818]
[1748057391205,0.03622774,175.97,175.94,5.72395322]
[1748057391515,0.03622774,175.97,175.94,0.04175322]
[1748057391903,4.57809475,175.95,175.94,0.04175322]
[1748057392110,119.9819,175.95,175.94,0.04175322]